[Event "*** Titled Tuesday 3|2 Blitz"]
[Site "Chess.com"]
[Date "2017.05.02"]
[Round "9"]
[White "olgerts_indricans"]
[Black "JSMastropiero"]
[Result "0-1"]
[WhiteElo "2252"]
[BlackElo "2210"]
[TimeControl "180+2"]
[EndTime "14:59:01 PDT"]
[Termination "JSMastropiero won by resignation"]

1. e4 {[%clk 0:03:02]} 1... e6 {[%clk 0:03:00.8]} 2. d4 {[%clk 0:03:02.5]} 2...
d5 {[%clk 0:03:01.8]} 3. Nd2 {[%clk 0:03:03.7]} 3... dxe4 {[%clk 0:03:01.7]} 4.
Nxe4 {[%clk 0:03:04.6]} 4... Qd5 {[%clk 0:03:02.6]} 5. Ng3 {[%clk 0:02:59.2]}
5... c5 {[%clk 0:03:02]} 6. Nf3 {[%clk 0:02:58.2]} 6... cxd4 {[%clk 0:02:56.5]}
7. Nxd4 {[%clk 0:02:55.5]} 7... a6 {[%clk 0:02:55.9]} 8. a3 {[%clk 0:02:50.1]}
8... Nf6 {[%clk 0:02:53]} 9. c4 {[%clk 0:02:50.7]} 9... Qe5+ {[%clk 0:02:53.3]}
10. Be2 {[%clk 0:02:50.5]} 10... Bd7 {[%clk 0:02:49.5]} 11. O-O {[%clk
0:02:49.4]} 11... Nc6 {[%clk 0:02:49.7]} 12. Be3 {[%clk 0:02:47]} 12... Be7
{[%clk 0:02:46.3]} 13. Bf3 {[%clk 0:02:47.1]} 13... Qc7 {[%clk 0:02:46.5]} 14.
Rc1 {[%clk 0:02:45.5]} 14... O-O {[%clk 0:02:44.9]} 15. Nb5 {[%clk 0:02:46.5]}
15... Qb8 {[%clk 0:02:38.6]} 16. Ne4 {[%clk 0:02:28.7]} 16... axb5 {[%clk
0:02:17.9]} 17. Nxf6+ {[%clk 0:02:25.5]} 17... Bxf6 {[%clk 0:02:17.2]} 18. Qxd7
{[%clk 0:02:25.5]} 18... Rd8 {[%clk 0:01:58.9]} 19. Bxc6 {[%clk 0:02:22]} 19...
Rxd7 {[%clk 0:01:56.5]} 20. Bxd7 {[%clk 0:02:23.9]} 20... bxc4 {[%clk
0:01:42.7]} 21. Rxc4 {[%clk 0:02:23]} 21... Qd6 {[%clk 0:01:40.6]} 22. Bb5
{[%clk 0:02:07.4]} 22... Bxb2 {[%clk 0:01:35.2]} 23. a4 {[%clk 0:02:03.9]} 23...
Be5 {[%clk 0:01:09.8]} 24. g3 {[%clk 0:02:02.9]} 24... h6 {[%clk 0:01:08.1]} 25.
Rfc1 {[%clk 0:01:54.1]} 25... g5 {[%clk 0:01:04.2]} 26. R4c2 {[%clk 0:01:42.9]}
26... Kg7 {[%clk 0:00:59.3]} 27. Rd2 {[%clk 0:01:41.1]} 27... Qa3 {[%clk
0:00:52.5]} 28. Rd7 {[%clk 0:01:39.6]} 28... Rb8 {[%clk 0:00:22.2]} 29. Bc4
{[%clk 0:01:31.3]} 29... Kf6 {[%clk 0:00:22.1]} 30. f4 {[%clk 0:01:21.5]} 30...
gxf4 {[%clk 0:00:22.9]} 31. Rf1 {[%clk 0:01:22.9]} 31... Qxe3+ {[%clk
0:00:22.5]} 32. Kg2 {[%clk 0:01:24.1]} 32... Rg8 {[%clk 0:00:20.8]} 33. Rf3
{[%clk 0:01:19.5]} 33... Qc1 {[%clk 0:00:18.4]} 34. Bd3 {[%clk 0:01:15.2]} 34...
Qd2+ {[%clk 0:00:18.5]} 35. Rf2 {[%clk 0:01:15.5]} 35... Qe3 {[%clk 0:00:19.8]}
36. Rf3 {[%clk 0:01:16.5]} 36... Qc1 {[%clk 0:00:20.8]} 37. Rf1 {[%clk
0:01:16.9]} 37... Qb2+ {[%clk 0:00:20.8]} 38. Rf2 {[%clk 0:01:17.8]} 38... Qc3
{[%clk 0:00:21.2]} 39. Rc2 {[%clk 0:01:17.6]} 39... Qa3 {[%clk 0:00:20]} 40. Rf2
{[%clk 0:01:12.3]} 40... Qxa4 {[%clk 0:00:20.6]} 41. Kh3 {[%clk 0:01:12.3]}
41... Qxd7 {[%clk 0:00:21.1]} 0-1

[Event "*** Titled Tuesday 3|2 Blitz"]
[Site "Chess.com"]
[Date "2017.05.02"]
[Round "9"]
[White "wonderfultime"]
[Black "oskariot"]
[Result "1-0"]
[WhiteElo "2577"]
[BlackElo "2443"]
[TimeControl "180+2"]
[EndTime "14:59:10 PDT"]
[Termination "wonderfultime won on time"]

1. d4 {[%clk 0:03:01.9]} 1... Nf6 {[%clk 0:03:00.3]} 2. c4 {[%clk 0:03:02.7]}
2... g6 {[%clk 0:03:01.2]} 3. Nc3 {[%clk 0:03:03.9]} 3... c5 {[%clk 0:03:01.8]}
4. d5 {[%clk 0:03:04.7]} 4... Bg7 {[%clk 0:03:02.8]} 5. e4 {[%clk 0:03:05.4]}
5... d6 {[%clk 0:03:04.1]} 6. Bd3 {[%clk 0:03:06.6]} 6... O-O {[%clk 0:03:05]}
7. h3 {[%clk 0:03:08.1]} 7... e6 {[%clk 0:03:06.9]} 8. Nf3 {[%clk 0:03:05.2]}
8... Na6 {[%clk 0:03:08]} 9. O-O {[%clk 0:03:05.9]} 9... Nc7 {[%clk 0:03:09.3]}
10. Re1 {[%clk 0:02:58.1]} 10... Rb8 {[%clk 0:03:08.8]} 11. a4 {[%clk 0:02:40]}
11... e5 {[%clk 0:03:06.4]} 12. Rb1 {[%clk 0:02:28.4]} 12... Na6 {[%clk
0:03:06.7]} 13. Nb5 {[%clk 0:02:29.7]} 13... Ra8 {[%clk 0:02:53.7]} 14. Bd2
{[%clk 0:02:31]} 14... Ne8 {[%clk 0:02:47.9]} 15. Bc2 {[%clk 0:02:07.1]} 15...
h6 {[%clk 0:02:41.9]} 16. Bc3 {[%clk 0:02:03.3]} 16... Nb4 {[%clk 0:02:36.9]}
17. Nd2 {[%clk 0:02:01.3]} 17... a6 {[%clk 0:02:30.3]} 18. Na3 {[%clk
0:02:02.3]} 18... f5 {[%clk 0:02:14.3]} 19. exf5 {[%clk 0:02:03.4]} 19... gxf5
{[%clk 0:02:14.4]} 20. Nf1 {[%clk 0:02:04.5]} 20... Qg5 {[%clk 0:01:59.6]} 21.
Nh2 {[%clk 0:01:58.7]} 21... e4 {[%clk 0:01:54]} 22. Kh1 {[%clk 0:01:47.9]}
22... Bd7 {[%clk 0:01:47.2]} 23. Re3 {[%clk 0:01:17.6]} 23... Kh8 {[%clk
0:01:24.5]} 24. Rg3 {[%clk 0:01:14.5]} 24... Qh4 {[%clk 0:01:25.4]} 25. Qd2
{[%clk 0:01:10.3]} 25... f4 {[%clk 0:01:13.6]} 26. Rg6 {[%clk 0:01:09.2]} 26...
Bf5 {[%clk 0:01:14]} 27. Re6 {[%clk 0:01:05]} 27... Bxe6 {[%clk 0:01:01.3]} 28.
dxe6 {[%clk 0:01:06.9]} 28... Nxc2 {[%clk 0:00:59.3]} 29. Nxc2 {[%clk
0:01:08.8]} 29... Bxc3 {[%clk 0:00:34.3]} 30. bxc3 {[%clk 0:01:08.8]} 30... Ng7
{[%clk 0:00:28.7]} 31. Rxb7 {[%clk 0:01:04.1]} 31... Rab8 {[%clk 0:00:28.6]} 32.
Qxd6 {[%clk 0:01:04]} 32... Rxb7 {[%clk 0:00:23.4]} 33. Qxf8+ {[%clk 0:01:05]}
33... Kh7 {[%clk 0:00:24.6]} 34. Ng4 {[%clk 0:01:06.9]} 34... f3 {[%clk
0:00:21.5]} 35. Nce3 {[%clk 0:01:04.6]} 35... fxg2+ {[%clk 0:00:22.3]} 36. Kxg2
{[%clk 0:01:05.5]} 36... Qg5 {[%clk 0:00:21.9]} 37. Nd5 {[%clk 0:01:03.1]} 37...
Nh5 {[%clk 0:00:20]} 38. e7 {[%clk 0:01:00.6]} 1-0

[Event "*** Titled Tuesday 3|2 Blitz"]
[Site "Chess.com"]
[Date "2017.05.02"]
[Round "9"]
[White "Schemato"]
[Black "pKiLz5Rn9b"]
[Result "0-1"]
[WhiteElo "2299"]
[BlackElo "2449"]
[TimeControl "180+2"]
[EndTime "14:59:13 PDT"]
[Termination "pKiLz5Rn9b won on time"]

1. c4 {[%clk 0:03:02]} 1... e6 {[%clk 0:03:01]} 2. Nc3 {[%clk 0:02:57.3]} 2...
d5 {[%clk 0:03:02.1]} 3. d4 {[%clk 0:02:57.9]} 3... c5 {[%clk 0:03:03]} 4. cxd5
{[%clk 0:02:49.6]} 4... exd5 {[%clk 0:03:03.8]} 5. Nf3 {[%clk 0:02:49]} 5... Nf6
{[%clk 0:03:04.7]} 6. g3 {[%clk 0:02:48.8]} 6... Nc6 {[%clk 0:03:04.8]} 7. Bg2
{[%clk 0:02:49.7]} 7... Be7 {[%clk 0:03:05.7]} 8. O-O {[%clk 0:02:50.6]} 8...
O-O {[%clk 0:03:06.5]} 9. b3 {[%clk 0:02:48.2]} 9... Ne4 {[%clk 0:03:06.6]} 10.
Bb2 {[%clk 0:02:45.1]} 10... Bf6 {[%clk 0:03:06.9]} 11. e3 {[%clk 0:02:39.4]}
11... b6 {[%clk 0:03:02]} 12. Rc1 {[%clk 0:02:38.7]} 12... Ba6 {[%clk
0:03:00.6]} 13. Re1 {[%clk 0:02:38.8]} 13... Rc8 {[%clk 0:02:51.4]} 14. dxc5
{[%clk 0:02:34.8]} 14... bxc5 {[%clk 0:02:51.9]} 15. Nxe4 {[%clk 0:01:51.9]}
15... Bxb2 {[%clk 0:02:35.7]} 16. Nxc5 {[%clk 0:01:50.1]} 16... Bxc1 {[%clk
0:02:36]} 17. Nxa6 {[%clk 0:01:50.9]} 17... Qa5 {[%clk 0:02:32.1]} 18. Qxc1
{[%clk 0:01:46.6]} 18... Nd4 {[%clk 0:02:21.6]} 19. Qd1 {[%clk 0:01:29.2]} 19...
Nxf3+ {[%clk 0:02:21.5]} 20. Bxf3 {[%clk 0:01:29.8]} 20... Qxa6 {[%clk
0:02:22.5]} 21. Bxd5 {[%clk 0:01:15.9]} 21... Qxa2 {[%clk 0:02:18.7]} 22. Qf3
{[%clk 0:01:14.6]} 22... Rcd8 {[%clk 0:02:04.1]} 23. e4 {[%clk 0:01:11.8]} 23...
Qb2 {[%clk 0:01:51.5]} 24. Re3 {[%clk 0:01:04.8]} 24... Rd7 {[%clk 0:01:46]} 25.
Qf5 {[%clk 0:00:54.5]} 25... Re7 {[%clk 0:01:44.4]} 26. Rf3 {[%clk 0:00:54.4]}
26... Qc1+ {[%clk 0:01:38.1]} 27. Kg2 {[%clk 0:00:54.6]} 27... Qc7 {[%clk
0:01:39.5]} 28. h4 {[%clk 0:00:51.8]} 28... Qe5 {[%clk 0:01:27.3]} 29. Qxe5
{[%clk 0:00:37.7]} 29... Rxe5 {[%clk 0:01:27.9]} 30. Rc3 {[%clk 0:00:39.3]}
30... Re7 {[%clk 0:01:27.5]} 31. f4 {[%clk 0:00:32.8]} 31... g6 {[%clk
0:01:28.7]} 32. g4 {[%clk 0:00:30.7]} 32... Rd8 {[%clk 0:01:29.4]} 33. Kf3
{[%clk 0:00:29]} 33... Kg7 {[%clk 0:01:30.1]} 34. g5 {[%clk 0:00:22.2]} 34...
Red7 {[%clk 0:01:29.4]} 35. Rc5 {[%clk 0:00:21]} 35... Rd6 {[%clk 0:01:27]} 36.
Ra5 {[%clk 0:00:21.8]} 36... R8d7 {[%clk 0:01:25.7]} 37. Kg4 {[%clk 0:00:20.5]}
37... h5+ {[%clk 0:01:12.7]} 38. gxh6+ {[%clk 0:00:18.3]} 38... Kxh6 {[%clk
0:01:14.1]} 39. Rc5 {[%clk 0:00:14.4]} 39... Kg7 {[%clk 0:01:14.6]} 40. Kg3
{[%clk 0:00:10]} 40... f5 {[%clk 0:01:14.3]} 41. h5 {[%clk 0:00:06.4]} 41...
gxh5 {[%clk 0:01:13.4]} 42. Kh4 {[%clk 0:00:07.3]} 42... fxe4 {[%clk 0:01:13.2]}
43. Bxe4 {[%clk 0:00:07.8]} 43... Rd4 {[%clk 0:01:14.3]} 44. Re5 {[%clk
0:00:08.2]} 44... Rf7 {[%clk 0:01:12.4]} 45. Kg5 {[%clk 0:00:03.6]} 45... h4
{[%clk 0:01:06.2]} 46. f5 {[%clk 0:00:04.9]} 46... h3 {[%clk 0:01:06.6]} 0-1

[Event "*** Titled Tuesday 3|2 Blitz"]
[Site "Chess.com"]
[Date "2017.05.02"]
[Round "9"]
[White "grzechu96"]
[Black "NewBornNow"]
[Result "0-1"]
[WhiteElo "2393"]
[BlackElo "2560"]
[TimeControl "180+2"]
[EndTime "14:59:15 PDT"]
[Termination "NewBornNow won by resignation"]

1. e4 {[%clk 0:03:02]} 1... d6 {[%clk 0:02:58]} 2. d4 {[%clk 0:03:01.6]} 2...
Nf6 {[%clk 0:02:58.9]} 3. Nc3 {[%clk 0:03:01.7]} 3... e5 {[%clk 0:02:59.9]} 4.
Nf3 {[%clk 0:03:02.4]} 4... Nbd7 {[%clk 0:02:59.9]} 5. Rg1 {[%clk 0:03:00.4]}
5... g6 {[%clk 0:02:54.6]} 6. g4 {[%clk 0:03:01.7]} 6... Bg7 {[%clk 0:02:55.6]}
7. g5 {[%clk 0:03:03.2]} 7... Nh5 {[%clk 0:02:56.6]} 8. Be3 {[%clk 0:03:04.7]}
8... O-O {[%clk 0:02:56]} 9. Qd2 {[%clk 0:02:59]} 9... c6 {[%clk 0:02:57.1]} 10.
O-O-O {[%clk 0:02:59.5]} 10... b5 {[%clk 0:02:57.2]} 11. Kb1 {[%clk 0:02:56.1]}
11... b4 {[%clk 0:02:56.8]} 12. Ne2 {[%clk 0:02:55.8]} 12... a5 {[%clk
0:02:46.8]} 13. Ng3 {[%clk 0:02:55.6]} 13... Nxg3 {[%clk 0:02:46]} 14. hxg3
{[%clk 0:02:56.8]} 14... a4 {[%clk 0:02:37.6]} 15. dxe5 {[%clk 0:02:46]} 15...
b3 {[%clk 0:02:34.7]} 16. cxb3 {[%clk 0:02:25.3]} 16... axb3 {[%clk 0:02:33.7]}
17. a3 {[%clk 0:02:26.7]} 17... Nxe5 {[%clk 0:02:19.4]} 18. Nxe5 {[%clk
0:02:27.2]} 18... Bxe5 {[%clk 0:02:20.4]} 19. f4 {[%clk 0:02:28.6]} 19... Bg7
{[%clk 0:02:18.3]} 20. Qxd6 {[%clk 0:02:10.4]} 20... Qa5 {[%clk 0:02:17.1]} 21.
Qc5 {[%clk 0:02:11.2]} 21... Qa4 {[%clk 0:02:02]} 22. Qc4 {[%clk 0:02:10.7]}
22... Bg4 {[%clk 0:01:54.4]} 23. Rd2 {[%clk 0:02:01.5]} 23... Qa5 {[%clk
0:01:47.2]} 24. e5 {[%clk 0:01:57.5]} 24... Rfd8 {[%clk 0:01:34.1]} 25. Rgg2
{[%clk 0:00:54.1]} 25... Bf8 {[%clk 0:01:31.2]} 26. Bd4 {[%clk 0:00:18.2]} 26...
Be6 {[%clk 0:01:16.4]} 27. Qc3 {[%clk 0:00:18.3]} 27... Bf5+ {[%clk 0:01:14.3]}
28. Kc1 {[%clk 0:00:15.9]} 28... Qd5 {[%clk 0:01:11.4]} 29. Rge2 {[%clk
0:00:10.2]} 29... Qh1 {[%clk 0:01:08.8]} 30. Re1 {[%clk 0:00:11.1]} 30... c5
{[%clk 0:00:53.1]} 31. Bf2 {[%clk 0:00:11]} 31... Rxd2 {[%clk 0:00:50.9]} 32.
Qxd2 {[%clk 0:00:12.9]} 32... Qf3 {[%clk 0:00:48.4]} 33. Qe3 {[%clk 0:00:13]}
33... Qd5 {[%clk 0:00:44.3]} 34. Qd2 {[%clk 0:00:14.4]} 34... Qb7 {[%clk
0:00:34.7]} 35. Bc4 {[%clk 0:00:14.9]} 35... Ra4 {[%clk 0:00:29.1]} 36. Qd5
{[%clk 0:00:16]} 36... Qc7 {[%clk 0:00:24.7]} 37. Rd1 {[%clk 0:00:14.5]} 37...
Be6 {[%clk 0:00:25.1]} 38. Qd8 {[%clk 0:00:13.9]} 38... Rxc4+ {[%clk 0:00:24.5]}
39. Kb1 {[%clk 0:00:14.4]} 39... Bf5+ {[%clk 0:00:25.4]} 0-1

[Event "*** Titled Tuesday 3|2 Blitz"]
[Site "Chess.com"]
[Date "2017.05.02"]
[Round "9"]
[White "Saitama_Hero"]
[Black "ehrenfeld"]
[Result "1-0"]
[WhiteElo "2274"]
[BlackElo "2373"]
[TimeControl "180+2"]
[EndTime "14:59:27 PDT"]
[Termination "Saitama_Hero won by resignation"]

1. d4 {[%clk 0:03:02]} 1... Nf6 {[%clk 0:02:59]} 2. c4 {[%clk 0:03:02.4]} 2...
e6 {[%clk 0:02:59]} 3. Nc3 {[%clk 0:03:03]} 3... Bb4 {[%clk 0:02:58.3]} 4. f3
{[%clk 0:03:03.7]} 4... O-O {[%clk 0:02:58]} 5. a3 {[%clk 0:03:04.9]} 5... Be7
{[%clk 0:02:52.1]} 6. e4 {[%clk 0:03:05.5]} 6... d5 {[%clk 0:02:53]} 7. cxd5
{[%clk 0:03:04.5]} 7... exd5 {[%clk 0:02:53.6]} 8. e5 {[%clk 0:03:06.4]} 8...
Nfd7 {[%clk 0:02:54.2]} 9. f4 {[%clk 0:03:06.7]} 9... c5 {[%clk 0:02:55]} 10.
Nf3 {[%clk 0:03:07.1]} 10... Nc6 {[%clk 0:02:54]} 11. Be3 {[%clk 0:03:06.6]}
11... cxd4 {[%clk 0:02:44.7]} 12. Nxd4 {[%clk 0:03:08.5]} 12... Nc5 {[%clk
0:02:45]} 13. Be2 {[%clk 0:02:38.1]} 13... Nxd4 {[%clk 0:02:34.6]} 14. Bxd4
{[%clk 0:02:37.8]} 14... Bf5 {[%clk 0:02:27.2]} 15. O-O {[%clk 0:02:32.6]} 15...
Ne4 {[%clk 0:02:27.9]} 16. Bf3 {[%clk 0:02:23.6]} 16... Rc8 {[%clk 0:02:21.8]}
17. g4 {[%clk 0:02:05.7]} 17... Nxc3 {[%clk 0:02:20.7]} 18. bxc3 {[%clk
0:02:06]} 18... Be4 {[%clk 0:02:18.8]} 19. Bxe4 {[%clk 0:02:05.6]} 19... dxe4
{[%clk 0:02:19.4]} 20. f5 {[%clk 0:01:58]} 20... Bg5 {[%clk 0:02:20.3]} 21. Qe2
{[%clk 0:01:57.6]} 21... Qd5 {[%clk 0:02:20.3]} 22. Rad1 {[%clk 0:01:56.4]}
22... Qc6 {[%clk 0:02:12.4]} 23. Rfe1 {[%clk 0:01:51.7]} 23... Bh4 {[%clk
0:02:11.8]} 24. Rf1 {[%clk 0:01:47.8]} 24... Bg5 {[%clk 0:02:10.8]} 25. Qf2
{[%clk 0:01:42.1]} 25... e3 {[%clk 0:01:59.9]} 26. Bxe3 {[%clk 0:01:38.3]} 26...
Bxe3 {[%clk 0:01:59.9]} 27. Qxe3 {[%clk 0:01:40.2]} 27... Qxc3 {[%clk
0:01:57.9]} 28. Rf3 {[%clk 0:01:30.5]} 28... Qc2 {[%clk 0:01:46]} 29. Rdf1
{[%clk 0:01:23.7]} 29... Rc4 {[%clk 0:01:44.3]} 30. Rf4 {[%clk 0:01:03.7]} 30...
Rc3 {[%clk 0:01:40.6]} 31. Qxa7 {[%clk 0:00:49.4]} 31... h5 {[%clk 0:01:08.9]}
32. gxh5 {[%clk 0:00:47]} 32... Qe2 {[%clk 0:01:04.9]} 33. Qd4 {[%clk
0:00:35.5]} 33... Re3 {[%clk 0:00:56.7]} 34. R4f2 {[%clk 0:00:23.8]} 34... Qd3
{[%clk 0:00:45.6]} 35. Qxd3 {[%clk 0:00:22.3]} 35... Rxd3 {[%clk 0:00:46.3]} 36.
f6 {[%clk 0:00:20.2]} 36... gxf6 {[%clk 0:00:37.5]} 37. Rxf6 {[%clk 0:00:18.7]}
37... Re3 {[%clk 0:00:38.4]} 38. R1f5 {[%clk 0:00:14]} 38... Re2 {[%clk
0:00:27.6]} 39. h6 {[%clk 0:00:13.9]} 39... Rc8 {[%clk 0:00:26.9]} 40. Rxf7
{[%clk 0:00:14]} 40... Rc1+ {[%clk 0:00:25.3]} 41. Rf1 {[%clk 0:00:14.4]} 41...
Rcc2 {[%clk 0:00:22.8]} 42. Rg7+ {[%clk 0:00:13.4]} 1-0

[Event "*** Titled Tuesday 3|2 Blitz"]
[Site "Chess.com"]
[Date "2017.05.02"]
[Round "9"]
[White "Rikikits"]
[Black "spectralsoul"]
[Result "1/2-1/2"]
[WhiteElo "2583"]
[BlackElo "2647"]
[TimeControl "180+2"]
[EndTime "14:59:35 PDT"]
[Termination "Game drawn by agreement"]

1. e4 {[%clk 0:02:52.1]} 1... d6 {[%clk 0:03:00.5]} 2. d4 {[%clk 0:02:49.5]}
2... Nf6 {[%clk 0:03:01.5]} 3. f3 {[%clk 0:02:50.7]} 3... c5 {[%clk 0:03:01.8]}
4. Ne2 {[%clk 0:02:49.5]} 4... Nc6 {[%clk 0:02:59.3]} 5. d5 {[%clk 0:02:50.2]}
5... Ne5 {[%clk 0:03:00]} 6. Nd2 {[%clk 0:02:50.9]} 6... g6 {[%clk 0:02:58.7]}
7. h3 {[%clk 0:02:51.6]} 7... Bg7 {[%clk 0:02:58.6]} 8. f4 {[%clk 0:02:52.6]}
8... Ned7 {[%clk 0:02:59.5]} 9. g4 {[%clk 0:02:53.6]} 9... O-O {[%clk
0:02:55.3]} 10. Bg2 {[%clk 0:02:54.6]} 10... Nb6 {[%clk 0:02:51.3]} 11. O-O
{[%clk 0:02:50.5]} 11... e6 {[%clk 0:02:46.3]} 12. c4 {[%clk 0:02:49.3]} 12...
exd5 {[%clk 0:02:46.3]} 13. cxd5 {[%clk 0:02:51.2]} 13... Re8 {[%clk 0:02:47.1]}
14. Ng3 {[%clk 0:02:41.6]} 14... c4 {[%clk 0:02:29.4]} 15. g5 {[%clk 0:02:39.1]}
15... Nfd7 {[%clk 0:02:29.2]} 16. e5 {[%clk 0:02:25.7]} 16... Nc5 {[%clk
0:02:05.6]} 17. Nde4 {[%clk 0:02:06.1]} 17... Nxe4 {[%clk 0:02:03.8]} 18. Nxe4
{[%clk 0:02:08]} 18... dxe5 {[%clk 0:02:02.2]} 19. fxe5 {[%clk 0:02:01.3]} 19...
Bxe5 {[%clk 0:01:58.6]} 20. Nf6+ {[%clk 0:01:57.5]} 20... Bxf6 {[%clk
0:01:59.5]} 21. gxf6 {[%clk 0:01:59.4]} 21... Re5 {[%clk 0:01:50.5]} 22. Qd4
{[%clk 0:01:50.9]} 22... Rh5 {[%clk 0:01:48.3]} 23. h4 {[%clk 0:01:44.1]} 23...
Be6 {[%clk 0:01:40.4]} 24. Bg5 {[%clk 0:01:31.9]} 24... Bxd5 {[%clk 0:01:23.4]}
25. Rad1 {[%clk 0:01:32.1]} 25... h6 {[%clk 0:01:24.8]} 26. Bf3 {[%clk
0:01:14.3]} 26... Qd6 {[%clk 0:00:11.7]} 27. Bf4 {[%clk 0:01:14.5]} 27... Qe6
{[%clk 0:00:09.6]} 28. Bxh5 {[%clk 0:01:13.9]} 28... gxh5 {[%clk 0:00:11]} 29.
Kh2 {[%clk 0:01:06.9]} 29... Kh7 {[%clk 0:00:09.2]} 30. Qe3 {[%clk 0:00:51.4]}
30... Qg4 {[%clk 0:00:10]} 31. Qg3 {[%clk 0:00:52.6]} 31... Rg8 {[%clk
0:00:10.2]} 32. Qxg4 {[%clk 0:00:51.8]} 32... Rxg4 {[%clk 0:00:12.1]} 33. Bg3
{[%clk 0:00:51.4]} 33... Kg6 {[%clk 0:00:12.2]} 34. Rf4 {[%clk 0:00:43]} 34...
Be6 {[%clk 0:00:13.4]} 35. Rxg4+ {[%clk 0:00:43.1]} 35... hxg4 {[%clk
0:00:15.3]} 36. Bf2 {[%clk 0:00:37.6]} 36... Nd7 {[%clk 0:00:14.1]} 37. Bxa7
{[%clk 0:00:36.9]} 37... Nxf6 {[%clk 0:00:15.6]} 38. Kg3 {[%clk 0:00:34.7]}
38... Kf5 {[%clk 0:00:13.8]} 39. Rf1+ {[%clk 0:00:34]} 39... Kg6 {[%clk
0:00:13.8]} 40. Bd4 {[%clk 0:00:33.1]} 40... Nh5+ {[%clk 0:00:14.5]} 41. Kf2
{[%clk 0:00:34]} 41... f5 {[%clk 0:00:09.4]} 42. Ke3 {[%clk 0:00:33.3]} 42...
f4+ {[%clk 0:00:09.7]} 43. Rxf4 {[%clk 0:00:34]} 43... Nxf4 {[%clk 0:00:11.6]}
44. Kxf4 {[%clk 0:00:35.9]} 1/2-1/2

[Event "*** Titled Tuesday 3|2 Blitz"]
[Site "Chess.com"]
[Date "2017.05.02"]
[Round "9"]
[White "PowerThinking2650"]
[Black "Vamostodorecto"]
[Result "1-0"]
[WhiteElo "2189"]
[BlackElo "2318"]
[TimeControl "180+2"]
[EndTime "14:59:35 PDT"]
[Termination "PowerThinking2650 won by resignation"]

1. e4 {[%clk 0:03:02]} 1... e5 {[%clk 0:02:59.6]} 2. Nf3 {[%clk 0:03:02.6]} 2...
Nc6 {[%clk 0:02:54.6]} 3. Nc3 {[%clk 0:03:04]} 3... Nf6 {[%clk 0:02:54.3]} 4. d4
{[%clk 0:03:05.9]} 4... exd4 {[%clk 0:02:55.8]} 5. Nxd4 {[%clk 0:03:07.4]} 5...
Bb4 {[%clk 0:02:57.3]} 6. Nxc6 {[%clk 0:03:08.4]} 6... bxc6 {[%clk 0:02:59.2]}
7. Bd3 {[%clk 0:03:09.7]} 7... d5 {[%clk 0:03:00]} 8. exd5 {[%clk 0:03:10.8]}
8... cxd5 {[%clk 0:03:01.9]} 9. O-O {[%clk 0:03:11.5]} 9... O-O {[%clk
0:03:03.5]} 10. Bg5 {[%clk 0:03:13.1]} 10... c6 {[%clk 0:03:01.7]} 11. Qf3
{[%clk 0:03:14.5]} 11... Bd6 {[%clk 0:03:02]} 12. Bxf6 {[%clk 0:03:14.8]} 12...
Qxf6 {[%clk 0:03:03.9]} 13. Qxf6 {[%clk 0:03:16.1]} 13... gxf6 {[%clk
0:03:05.7]} 14. Ne2 {[%clk 0:03:17.1]} 14... Rb8 {[%clk 0:03:04.3]} 15. b3
{[%clk 0:03:18]} 15... Be6 {[%clk 0:02:59.5]} 16. Ng3 {[%clk 0:03:15.3]} 16...
Be5 {[%clk 0:02:57.1]} 17. Rad1 {[%clk 0:03:14.8]} 17... c5 {[%clk 0:02:55.3]}
18. f4 {[%clk 0:03:02.1]} 18... Bd4+ {[%clk 0:02:46.1]} 19. Kh1 {[%clk
0:03:02.7]} 19... Bg4 {[%clk 0:02:47.1]} 20. Rde1 {[%clk 0:02:58.9]} 20... Rfe8
{[%clk 0:02:35.6]} 21. Rxe8+ {[%clk 0:02:08.2]} 21... Rxe8 {[%clk 0:02:37.5]}
22. f5 {[%clk 0:02:09.6]} 22... Bc3 {[%clk 0:02:13.4]} 23. Rf4 {[%clk
0:01:53.8]} 23... Bd1 {[%clk 0:02:06.1]} 24. Rf1 {[%clk 0:01:43.5]} 24... Re1
{[%clk 0:01:56.4]} 25. Rxe1 {[%clk 0:01:39.2]} 25... Bxe1 {[%clk 0:01:58.3]} 26.
Kg1 {[%clk 0:01:08.7]} 26... c4 {[%clk 0:01:46.4]} 27. bxc4 {[%clk 0:01:01.3]}
27... dxc4 {[%clk 0:01:48.3]} 28. Be4 {[%clk 0:01:02.7]} 28... Bc3 {[%clk
0:01:17.3]} 29. Kf1 {[%clk 0:00:59.7]} 29... Kg7 {[%clk 0:01:14.9]} 30. Nh1
{[%clk 0:00:44.2]} 30... Kh6 {[%clk 0:00:45.5]} 31. Nf2 {[%clk 0:00:38.5]} 31...
Bh5 {[%clk 0:00:44.9]} 32. g4 {[%clk 0:00:32]} 32... Bg6 {[%clk 0:00:45.5]} 33.
h4 {[%clk 0:00:26.8]} 33... Be5 {[%clk 0:00:40.3]} 34. Ke2 {[%clk 0:00:22.7]}
34... Bg3 {[%clk 0:00:40]} 35. fxg6 {[%clk 0:00:21.2]} 35... fxg6 {[%clk
0:00:41.9]} 36. h5 {[%clk 0:00:17.6]} 36... Be5 {[%clk 0:00:28.7]} 37. hxg6
{[%clk 0:00:17.1]} 37... hxg6 {[%clk 0:00:30.6]} 38. Kf3 {[%clk 0:00:17.3]}
38... Kg5 {[%clk 0:00:29.6]} 39. Nh3+ {[%clk 0:00:18.2]} 39... Kh4 {[%clk
0:00:29]} 40. Nf4 {[%clk 0:00:18.6]} 40... g5 {[%clk 0:00:20.3]} 41. Ng6+ {[%clk
0:00:19.4]} 41... Kh3 {[%clk 0:00:20.2]} 42. Nxe5 {[%clk 0:00:15.6]} 42... fxe5
{[%clk 0:00:22.1]} 43. Bf5 {[%clk 0:00:15.4]} 1-0